[Event "Titled Tuesday Blitz July 25 Late 2023"]
[White "Musovic, Armin"]
[Black "Floresvillar Gonzalez, Luis Migu"]
[WhiteFideId "939935"]
[BlackFideId "5100542"]
[WhiteElo "2523"]
[BlackElo "2107"]
[Result "1-0"]
[Round "2"]
[TimeControl "180+2"]
[Date "2023.07.25"]
[WhiteClock "0:01:37"]
[BlackClock "0:01:09"]
[Board "106"]

1. a3 {[%clk 0:03:00]}  d5 {[%clk 0:02:58]} 2. Nc3 {[%clk 0:03:00]}  Nf6 {[%clk 0:02:55]} 3. d3 {[%clk 0:03:00]}  Bf5 {[%clk 0:02:52]} 4. Bg5 {[%clk 0:03:00]}  Nbd7 {[%clk 0:02:47]} 5. f3 {[%clk 0:03:00]}  c6 {[%clk 0:02:45]} 6. e4 {[%clk 0:03:00]}  Bg6 {[%clk 0:02:40]} 7. Nh3 {[%clk 0:02:59]}  h6 {[%clk 0:02:40]} 8. Bh4 {[%clk 0:02:59]}  Qc7 {[%clk 0:02:32]} 9. Bg3 {[%clk 0:02:56]}  e5 {[%clk 0:02:26]} 10. exd5 {[%clk 0:02:57]}  Nxd5 {[%clk 0:02:14]} 11. Nxd5 {[%clk 0:02:45]}  cxd5 {[%clk 0:02:14]} 12. d4 {[%clk 0:02:41]}  Bd6 {[%clk 0:02:11]} 13. dxe5 {[%clk 0:02:35]}  Bxe5 {[%clk 0:02:08]} 14. Qxd5 {[%clk 0:02:06]}  Bxg3+ {[%clk 0:02:06]} 15. hxg3 {[%clk 0:02:07]}  O-O {[%clk 0:02:02]} 16. Kf2 {[%clk 0:02:00]}  Qxc2+ {[%clk 0:01:57]} 17. Kg1 {[%clk 0:02:00]}  Qc5+ {[%clk 0:01:56]} 18. Qxc5 {[%clk 0:01:59]}  Nxc5 {[%clk 0:01:56]} 19. Nf4 {[%clk 0:01:57]}  Bh7 {[%clk 0:01:49]} 20. b4 {[%clk 0:01:55]}  Ne6 {[%clk 0:01:40]} 21. Nxe6 {[%clk 0:01:55]}  fxe6 {[%clk 0:01:40]} 22. Bc4 {[%clk 0:01:54]}  Rfe8 {[%clk 0:01:35]} 23. Re1 {[%clk 0:01:54]}  Kf7 {[%clk 0:01:32]} 24. Rh4 {[%clk 0:01:55]}  g5 {[%clk 0:01:28]} 25. Rxh6 {[%clk 0:01:52]}  Kg7 {[%clk 0:01:28]} 26. Rhxe6 {[%clk 0:01:52]}  Rxe6 {[%clk 0:01:27]} 27. Rxe6 {[%clk 0:01:47]}  Rc8 {[%clk 0:01:21]} 28. Re7+ {[%clk 0:01:43]}  Kh6 {[%clk 0:01:21]} 29. Be6 {[%clk 0:01:40]}  Rc2 {[%clk 0:01:18]} 30. Rxh7+ {[%clk 0:01:37]}  Kxh7 {[%clk 0:01:09]} 31. Bf5+ {[%clk 0:01:37]} 1-0


[Site "https://www.chess.com"]

[Event "Titled Tuesday Blitz July 25 Late 2023"]
[White "Uzcategui Rodriguez, Alejandro"]
[Black "Stoyanov, Tsvetan"]
[WhiteFideId "3903400"]
[BlackFideId "2917173"]
[WhiteElo "2414"]
[BlackElo "2775"]
[Result "0-1"]
[Round "2"]
[TimeControl "180+2"]
[Date "2023.07.25"]
[WhiteClock "0:00:00"]
[BlackClock "0:00:05"]
[Board "110"]

1. e4 {[%clk 0:03:00]}  c5 {[%clk 0:01:57]} 2. Nf3 {[%clk 0:03:00]}  d6 {[%clk 0:01:57]} 3. d4 {[%clk 0:03:00]}  cxd4 {[%clk 0:01:58]} 4. Nxd4 {[%clk 0:03:01]}  Nf6 {[%clk 0:01:58]} 5. Nc3 {[%clk 0:03:01]}  a6 {[%clk 0:01:59]} 6. Bc4 {[%clk 0:03:01]}  e6 {[%clk 0:01:59]} 7. Bb3 {[%clk 0:03:01]}  Be7 {[%clk 0:02:00]} 8. O-O {[%clk 0:02:59]}  b5 {[%clk 0:02:00]} 9. Qf3 {[%clk 0:02:59]}  Qc7 {[%clk 0:01:59]} 10. Qg3 {[%clk 0:02:57]}  O-O {[%clk 0:01:59]} 11. Nf3 {[%clk 0:02:54]}  Bb7 {[%clk 0:01:56]} 12. Bh6 {[%clk 0:02:44]}  Ne8 {[%clk 0:01:56]} 13. Rfd1 {[%clk 0:02:37]}  Nd7 {[%clk 0:01:50]} 14. Bf4 {[%clk 0:02:31]}  b4 {[%clk 0:01:48]} 15. e5 {[%clk 0:02:23]}  bxc3 {[%clk 0:00:41]} 16. exd6 {[%clk 0:02:21]}  Bxd6 {[%clk 0:00:41]} 17. Rxd6 {[%clk 0:02:20]}  cxb2 {[%clk 0:00:34]} 18. Rb1 {[%clk 0:02:04]}  Nxd6 {[%clk 0:00:25]} 19. Bxd6 {[%clk 0:02:04]}  Qc3 {[%clk 0:00:24]} 20. Ne5 {[%clk 0:01:58]}  Qd2 {[%clk 0:00:19]} 21. Nd3 {[%clk 0:01:45]}  Rfd8 {[%clk 0:00:16]} 22. Bf4 {[%clk 0:01:30]}  Qe2 {[%clk 0:00:16]} 23. Bh6 {[%clk 0:01:27]}  g6 {[%clk 0:00:14]} 24. Nxb2 {[%clk 0:00:38]}  Nf6 {[%clk 0:00:12]} 25. Nd3 {[%clk 0:00:30]}  Nh5 {[%clk 0:00:08]} 26. Qc7 {[%clk 0:00:24]}  Qe4 {[%clk 0:00:08]} 27. f3 {[%clk 0:00:23]}  Qd4+ {[%clk 0:00:09]} 28. Kh1 {[%clk 0:00:21]}  Bd5 {[%clk 0:00:09]} 29. Bxd5 {[%clk 0:00:14]}  exd5 {[%clk 0:00:09]} 30. Rb7 {[%clk 0:00:12]}  Qf6 {[%clk 0:00:08]} 31. Bg5 {[%clk 0:00:10]}  Qa1+ {[%clk 0:00:07]} 32. Nc1 {[%clk 0:00:10]}  Rf8 {[%clk 0:00:07]} 33. g4 {[%clk 0:00:04]}  Rac8 {[%clk 0:00:06]} 34. Qb6 {[%clk 0:00:00]}  Ng7 {[%clk 0:00:05]} 0-1


[Site "https://www.chess.com"]

[Event "Titled Tuesday Blitz July 25 Late 2023"]
[White "Schnaider, Ilan"]
[Black "Rakitic2010"]
[WhiteFideId "169013"]
[WhiteElo "2746"]
[BlackElo "2407"]
[Result "1-0"]
[Round "2"]
[TimeControl "180+2"]
[Date "2023.07.25"]
[WhiteClock "0:00:20"]
[BlackClock "0:00:00"]
[Board "114"]

1. e4 {[%clk 0:03:00]}  Nf6 {[%clk 0:02:58]} 2. e5 {[%clk 0:03:00]}  Nd5 {[%clk 0:02:59]} 3. d4 {[%clk 0:03:00]}  d6 {[%clk 0:02:59]} 4. c4 {[%clk 0:03:00]}  Nb6 {[%clk 0:02:59]} 5. exd6 {[%clk 0:03:01]}  cxd6 {[%clk 0:02:59]} 6. Nc3 {[%clk 0:03:01]}  g6 {[%clk 0:03:00]} 7. Be3 {[%clk 0:03:01]}  Bg7 {[%clk 0:03:01]} 8. Rc1 {[%clk 0:03:01]}  O-O {[%clk 0:03:01]} 9. b3 {[%clk 0:03:02]}  e5 {[%clk 0:03:02]} 10. d5 {[%clk 0:03:02]}  f5 {[%clk 0:03:01]} 11. c5 {[%clk 0:02:45]}  dxc5 {[%clk 0:02:43]} 12. Bxc5 {[%clk 0:02:46]}  Re8 {[%clk 0:02:43]} 13. Nf3 {[%clk 0:02:43]}  N8d7 {[%clk 0:02:39]} 14. Ba3 {[%clk 0:02:40]}  Nf6 {[%clk 0:02:37]} 15. Bc4 {[%clk 0:02:38]}  Nxc4 {[%clk 0:02:25]} 16. bxc4 {[%clk 0:02:39]}  Qa5 {[%clk 0:02:24]} 17. Qb3 {[%clk 0:02:34]}  Bd7 {[%clk 0:02:20]} 18. O-O {[%clk 0:02:33]}  Rac8 {[%clk 0:02:18]} 19. Rfe1 {[%clk 0:02:27]}  e4 {[%clk 0:02:12]} 20. Nd4 {[%clk 0:02:27]}  a6 {[%clk 0:02:05]} 21. c5 {[%clk 0:02:18]}  Kh8 {[%clk 0:01:57]} 22. h3 {[%clk 0:02:09]}  h5 {[%clk 0:01:13]} 23. Nce2 {[%clk 0:01:45]}  Kh7 {[%clk 0:01:11]} 24. Bb4 {[%clk 0:01:25]}  Qa4 {[%clk 0:01:04]} 25. c6 {[%clk 0:01:00]}  Qxb3 {[%clk 0:01:03]} 26. axb3 {[%clk 0:01:01]}  bxc6 {[%clk 0:00:52]} 27. dxc6 {[%clk 0:01:02]}  Be6 {[%clk 0:00:51]} 28. Ra1 {[%clk 0:01:03]}  Nd5 {[%clk 0:00:48]} 29. Bc5 {[%clk 0:01:01]}  Ra8 {[%clk 0:00:37]} 30. Red1 {[%clk 0:00:57]}  Red8 {[%clk 0:00:35]} 31. Rac1 {[%clk 0:00:57]}  Bf7 {[%clk 0:00:33]} 32. b4 {[%clk 0:00:51]}  Rdc8 {[%clk 0:00:30]} 33. g4 {[%clk 0:00:44]}  hxg4 {[%clk 0:00:30]} 34. hxg4 {[%clk 0:00:44]}  f4 {[%clk 0:00:30]} 35. f3 {[%clk 0:00:42]}  e3 {[%clk 0:00:28]} 36. Kg2 {[%clk 0:00:38]}  g5 {[%clk 0:00:27]} 37. Nf5 {[%clk 0:00:36]}  Rxc6 {[%clk 0:00:18]} 38. Rxd5 {[%clk 0:00:36]}  Bxd5 {[%clk 0:00:18]} 39. Rh1+ {[%clk 0:00:36]}  Bh6 {[%clk 0:00:15]} 40. Ne7 {[%clk 0:00:35]}  Bxf3+ {[%clk 0:00:10]} 41. Kxf3 {[%clk 0:00:35]}  Re6 {[%clk 0:00:11]} 42. Nf5 {[%clk 0:00:35]}  Rd8 {[%clk 0:00:10]} 43. Ned4 {[%clk 0:00:35]}  Rf6 {[%clk 0:00:08]} 44. Be7 {[%clk 0:00:35]}  Rxf5 {[%clk 0:00:07]} 45. Nxf5 {[%clk 0:00:35]}  Rd2 {[%clk 0:00:07]} 46. Rxh6+ {[%clk 0:00:35]}  Kg8 {[%clk 0:00:08]} 47. Nxe3 {[%clk 0:00:27]}  Rd3 {[%clk 0:00:07]} 48. Bc5 {[%clk 0:00:27]}  fxe3 {[%clk 0:00:07]} 49. Bxe3 {[%clk 0:00:27]}  Rb3 {[%clk 0:00:06]} 50. Rxa6 {[%clk 0:00:27]}  Rxb4 {[%clk 0:00:06]} 51. Bxg5 {[%clk 0:00:28]}  Kg7 {[%clk 0:00:06]} 52. Be3 {[%clk 0:00:28]}  Kf7 {[%clk 0:00:06]} 53. Ra5 {[%clk 0:00:28]}  Rc4 {[%clk 0:00:06]} 54. Rf5+ {[%clk 0:00:28]}  Kg7 {[%clk 0:00:06]} 55. Rf4 {[%clk 0:00:29]}  Rc3 {[%clk 0:00:06]} 56. Ke4 {[%clk 0:00:28]}  Rc4+ {[%clk 0:00:05]} 57. Bd4+ {[%clk 0:00:28]}  Kg6 {[%clk 0:00:06]} 58. Rf5 {[%clk 0:00:27]}  Ra4 {[%clk 0:00:06]} 59. Ke3 {[%clk 0:00:23]}  Ra3+ {[%clk 0:00:04]} 60. Kf4 {[%clk 0:00:24]}  Ra4 {[%clk 0:00:05]} 61. Rd5 {[%clk 0:00:24]}  Rb4 {[%clk 0:00:05]} 62. Rd6+ {[%clk 0:00:24]}  Kh7 {[%clk 0:00:05]} 63. Kf5 {[%clk 0:00:23]}  Rb5+ {[%clk 0:00:04]} 64. Be5 {[%clk 0:00:24]}  Ra5 {[%clk 0:00:04]} 65. g5 {[%clk 0:00:24]}  Kg8 {[%clk 0:00:02]} 66. Rd8+ {[%clk 0:00:23]}  Kf7 {[%clk 0:00:01]} 67. Rd7+ {[%clk 0:00:23]}  Ke8 {[%clk 0:00:01]} 68. Rb7 {[%clk 0:00:23]}  Kf8 {[%clk 0:00:01]} 69. g6 {[%clk 0:00:21]}  Ke8 {[%clk 0:00:02]} 70. g7 {[%clk 0:00:20]}  Rxe5+ {[%clk 0:00:00]} 71. Kxe5 {[%clk 0:00:20]} 1-0


[Site "https://www.chess.com"]

[Event "Titled Tuesday Blitz July 25 Late 2023"]
[White "Bryakin, Mikhail"]
[Black "Bazilius, Augustinas"]
[WhiteFideId "4165314"]
[BlackFideId "12832251"]
[WhiteElo "2678"]
[BlackElo "2404"]
[Result "1-0"]
[Round "2"]
[TimeControl "180+2"]
[Date "2023.07.25"]
[WhiteClock "0:02:26"]
[BlackClock "0:00:51"]
[Board "116"]

1. e4 {[%clk 0:03:00]}  c5 {[%clk 0:02:59]} 2. d4 {[%clk 0:02:59]}  cxd4 {[%clk 0:02:59]} 3. Qxd4 {[%clk 0:03:00]}  Nc6 {[%clk 0:02:59]} 4. Qd3 {[%clk 0:03:00]}  d6 {[%clk 0:03:00]} 5. Nf3 {[%clk 0:03:00]}  Nf6 {[%clk 0:03:00]} 6. Nc3 {[%clk 0:03:01]}  g6 {[%clk 0:03:01]} 7. Be2 {[%clk 0:03:01]}  Bg7 {[%clk 0:03:01]} 8. O-O {[%clk 0:03:02]}  O-O {[%clk 0:03:01]} 9. Nd5 {[%clk 0:03:01]}  Bg4 {[%clk 0:02:54]} 10. c3 {[%clk 0:02:59]}  Nd7 {[%clk 0:02:17]} 11. h3 {[%clk 0:02:55]}  Nc5 {[%clk 0:02:11]} 12. Qc2 {[%clk 0:02:54]}  Be6 {[%clk 0:01:58]} 13. Rd1 {[%clk 0:02:53]}  Rc8 {[%clk 0:01:34]} 14. Bg5 {[%clk 0:02:34]}  h6 {[%clk 0:01:23]} 15. Be3 {[%clk 0:02:31]}  Nd7 {[%clk 0:01:09]} 16. Qd2 {[%clk 0:02:27]}  Kh7 {[%clk 0:01:07]} 17. h4 {[%clk 0:02:24]}  Nce5 {[%clk 0:01:05]} 18. Nd4 {[%clk 0:02:24]}  Bxd5 {[%clk 0:00:59]} 19. exd5 {[%clk 0:02:24]}  Nc4 {[%clk 0:00:59]} 20. Bxc4 {[%clk 0:02:25]}  Rxc4 {[%clk 0:01:00]} 21. h5 {[%clk 0:02:26]}  g5 {[%clk 0:00:51]} 22. Qd3+ {[%clk 0:02:26]} 1-0


[Site "https://www.chess.com"]

[Event "Titled Tuesday Blitz July 25 Late 2023"]
[White "Vega Gutierrez, Sabrina"]
[Black "brm72"]
[WhiteFideId "2219026"]
[WhiteElo "2404"]
[BlackElo "2651"]
[Result "0-1"]
[Round "2"]
[TimeControl "180+2"]
[Date "2023.07.25"]
[WhiteClock "0:00:00"]
[BlackClock "0:01:07"]
[Board "117"]

1. e4 {[%clk 0:03:00]}  c6 {[%clk 0:02:59]} 2. d4 {[%clk 0:03:00]}  d5 {[%clk 0:03:00]} 3. e5 {[%clk 0:03:00]}  c5 {[%clk 0:03:00]} 4. dxc5 {[%clk 0:03:00]}  e6 {[%clk 0:03:00]} 5. a3 {[%clk 0:02:59]}  Bxc5 {[%clk 0:03:00]} 6. b4 {[%clk 0:02:59]}  Bb6 {[%clk 0:03:01]} 7. Nf3 {[%clk 0:02:59]}  a5 {[%clk 0:03:01]} 8. b5 {[%clk 0:02:22]}  Nd7 {[%clk 0:03:00]} 9. Bb2 {[%clk 0:02:22]}  Ne7 {[%clk 0:02:59]} 10. c4 {[%clk 0:02:20]}  a4 {[%clk 0:02:55]} 11. Nc3 {[%clk 0:02:20]}  Nc5 {[%clk 0:02:55]} 12. Ra2 {[%clk 0:01:44]}  O-O {[%clk 0:02:53]} 13. Bd3 {[%clk 0:01:34]}  h6 {[%clk 0:02:53]} 14. Bb1 {[%clk 0:01:33]}  dxc4 {[%clk 0:02:44]} 15. O-O {[%clk 0:01:32]}  Nd3 {[%clk 0:02:32]} 16. Ba1 {[%clk 0:01:30]}  Nd5 {[%clk 0:02:25]} 17. Bxd3 {[%clk 0:01:11]}  Nxc3 {[%clk 0:02:25]} 18. Bxc3 {[%clk 0:01:11]}  Qxd3 {[%clk 0:02:22]} 19. Qxd3 {[%clk 0:01:09]}  cxd3 {[%clk 0:02:23]} 20. Rd1 {[%clk 0:01:05]}  Rd8 {[%clk 0:02:13]} 21. Ne1 {[%clk 0:00:49]}  Bd7 {[%clk 0:02:13]} 22. Rb2 {[%clk 0:00:48]}  Rac8 {[%clk 0:02:08]} 23. Rxd3 {[%clk 0:00:43]}  Be8 {[%clk 0:01:47]} 24. Rxd8 {[%clk 0:00:40]}  Rxd8 {[%clk 0:01:47]} 25. Rb4 {[%clk 0:00:05]}  Rd5 {[%clk 0:01:31]} 26. Rxa4 {[%clk 0:00:04]}  Bxb5 {[%clk 0:01:32]} 27. Ra8+ {[%clk 0:00:03]}  Kh7 {[%clk 0:01:31]} 28. Rb8 {[%clk 0:00:03]}  Bc6 {[%clk 0:01:30]} 29. g3 {[%clk 0:00:01]}  g5 {[%clk 0:01:29]} 30. Bb4 {[%clk 0:00:02]}  Rxe5 {[%clk 0:01:23]} 31. Kf1 {[%clk 0:00:02]}  Bb5+ {[%clk 0:01:22]} 32. Kg2 {[%clk 0:00:01]}  Bc6+ {[%clk 0:01:20]} 33. Kg1 {[%clk 0:00:02]}  Re2 {[%clk 0:01:19]} 34. Nd3 {[%clk 0:00:02]}  Be4 {[%clk 0:01:16]} 35. Ne5 {[%clk 0:00:01]}  Rxf2 {[%clk 0:01:12]} 36. Nc4 {[%clk 0:00:01]}  Bd4 {[%clk 0:01:10]} 37. Rd8 {[%clk 0:00:00]}  Bd5 {[%clk 0:01:07]} 0-1


[Site "https://www.chess.com"]

[Event "Titled Tuesday Blitz July 25 Late 2023"]
[White "Der_Balak_3Halak"]
[Black "Bjelobrk, Igor"]
[BlackFideId "4300726"]
[WhiteElo "2401"]
[BlackElo "2649"]
[Result "0-1"]
[Round "2"]
[TimeControl "180+2"]
[Date "2023.07.25"]
[WhiteClock "0:00:00"]
[BlackClock "0:00:15"]
[Board "118"]

1. b3 {[%clk 0:03:00]}  d5 {[%clk 0:02:59]} 2. Bb2 {[%clk 0:03:00]}  Nf6 {[%clk 0:02:57]} 3. e3 {[%clk 0:03:00]}  Bg4 {[%clk 0:02:55]} 4. Nf3 {[%clk 0:02:58]}  e6 {[%clk 0:02:54]} 5. Be2 {[%clk 0:02:54]}  Nbd7 {[%clk 0:02:54]} 6. d3 {[%clk 0:02:53]}  Bd6 {[%clk 0:02:54]} 7. Nbd2 {[%clk 0:02:51]}  O-O {[%clk 0:02:53]} 8. O-O {[%clk 0:02:48]}  Qe7 {[%clk 0:02:53]} 9. e4 {[%clk 0:02:00]}  dxe4 {[%clk 0:00:48]} 10. dxe4 {[%clk 0:02:01]}  e5 {[%clk 0:00:48]} 11. a3 {[%clk 0:01:53]}  a5 {[%clk 0:00:47]} 12. Re1 {[%clk 0:01:39]}  Rfe8 {[%clk 0:00:46]} 13. Bc4 {[%clk 0:01:30]}  Nb6 {[%clk 0:00:42]} 14. Bb5 {[%clk 0:01:17]}  c6 {[%clk 0:00:41]} 15. Bf1 {[%clk 0:01:11]}  Nfd7 {[%clk 0:00:40]} 16. c4 {[%clk 0:01:06]}  f6 {[%clk 0:00:31]} 17. Rc1 {[%clk 0:01:01]}  Red8 {[%clk 0:00:31]} 18. Qc2 {[%clk 0:00:55]}  Bc5 {[%clk 0:00:15]} 19. Rcd1 {[%clk 0:00:36]}  Nf8 {[%clk 0:00:16]} 20. Be2 {[%clk 0:00:31]}  Nbd7 {[%clk 0:00:16]} 21. a4 {[%clk 0:00:00]}  Ne6 {[%clk 0:00:15]} 0-1


[Site "https://www.chess.com"]

[Event "Titled Tuesday Blitz July 25 Late 2023"]
[White "Shuvalova, Polina"]
[Black "Davidson, Kevin"]
[WhiteFideId "24171760"]
[BlackFideId "2056810"]
[WhiteElo "2641"]
[BlackElo "2390"]
[Result "1-0"]
[Round "2"]
[TimeControl "180+2"]
[Date "2023.07.25"]
[WhiteClock "0:01:41"]
[BlackClock "0:00:00"]
[Board "120"]

1. f4 {[%clk 0:03:00]}  Nf6 {[%clk 0:02:46]} 2. Nf3 {[%clk 0:03:01]}  g6 {[%clk 0:02:46]} 3. g3 {[%clk 0:03:01]}  Bg7 {[%clk 0:02:45]} 4. Bg2 {[%clk 0:03:01]}  d6 {[%clk 0:02:45]} 5. O-O {[%clk 0:03:02]}  O-O {[%clk 0:02:45]} 6. d3 {[%clk 0:03:03]}  c5 {[%clk 0:02:44]} 7. e4 {[%clk 0:03:03]}  Nc6 {[%clk 0:02:43]} 8. Nc3 {[%clk 0:03:04]}  Rb8 {[%clk 0:02:39]} 9. a4 {[%clk 0:03:04]}  a6 {[%clk 0:02:39]} 10. Kh1 {[%clk 0:03:04]}  b5 {[%clk 0:02:39]} 11. Be3 {[%clk 0:03:03]}  b4 {[%clk 0:02:38]} 12. Ne2 {[%clk 0:03:02]}  Ne8 {[%clk 0:02:07]} 13. d4 {[%clk 0:02:59]}  cxd4 {[%clk 0:02:03]} 14. Nexd4 {[%clk 0:03:00]}  Nxd4 {[%clk 0:02:03]} 15. Bxd4 {[%clk 0:02:59]}  Nc7 {[%clk 0:01:47]} 16. Bxg7 {[%clk 0:02:48]}  Kxg7 {[%clk 0:01:48]} 17. Qd4+ {[%clk 0:02:49]}  Kg8 {[%clk 0:01:47]} 18. Rad1 {[%clk 0:02:49]}  Ne6 {[%clk 0:01:36]} 19. Qe3 {[%clk 0:02:50]}  Qc7 {[%clk 0:01:32]} 20. f5 {[%clk 0:02:50]}  Nc5 {[%clk 0:01:28]} 21. Qh6 {[%clk 0:02:44]}  Nxe4 {[%clk 0:01:10]} 22. Rde1 {[%clk 0:02:35]}  Nf6 {[%clk 0:00:38]} 23. fxg6 {[%clk 0:02:30]}  fxg6 {[%clk 0:00:33]} 24. Ng5 {[%clk 0:02:31]}  Bb7 {[%clk 0:00:18]} 25. Rf2 {[%clk 0:01:44]}  Bxg2+ {[%clk 0:00:15]} 26. Kxg2 {[%clk 0:01:43]}  e5 {[%clk 0:00:06]} 27. Kg1 {[%clk 0:01:38]}  Ng4 {[%clk 0:00:04]} 28. Rxf8+ {[%clk 0:01:38]}  Rxf8 {[%clk 0:00:03]} 29. Qxf8+ {[%clk 0:01:39]}  Kxf8 {[%clk 0:00:03]} 30. Ne6+ {[%clk 0:01:40]}  Ke7 {[%clk 0:00:02]} 31. Nxc7 {[%clk 0:01:41]}  Kd7 {[%clk 0:00:00]} 32. Nxa6 {[%clk 0:01:41]} 1-0


[Site "https://www.chess.com"]

[Event "Titled Tuesday Blitz July 25 Late 2023"]
[White "Czernek, Tymon"]
[Black "Fernandez Diaz, Cristian"]
[WhiteFideId "1199510"]
[BlackFideId "22256687"]
[WhiteElo "2603"]
[BlackElo "2384"]
[Result "1-0"]
[Round "2"]
[TimeControl "180+2"]
[Date "2023.07.25"]
[WhiteClock "0:01:25"]
[BlackClock "0:00:00"]
[Board "123"]

1. e4 {[%clk 0:03:00]}  c5 {[%clk 0:02:59]} 2. Nf3 {[%clk 0:02:57]}  Nc6 {[%clk 0:02:59]} 3. d4 {[%clk 0:02:51]}  cxd4 {[%clk 0:02:59]} 4. Nxd4 {[%clk 0:02:52]}  g6 {[%clk 0:02:58]} 5. Nxc6 {[%clk 0:02:50]}  bxc6 {[%clk 0:02:58]} 6. c4 {[%clk 0:02:50]}  Nf6 {[%clk 0:02:57]} 7. Nc3 {[%clk 0:02:51]}  d6 {[%clk 0:02:56]} 8. Bd3 {[%clk 0:02:51]}  Bg7 {[%clk 0:02:56]} 9. O-O {[%clk 0:02:52]}  O-O {[%clk 0:02:57]} 10. h3 {[%clk 0:02:51]}  Nd7 {[%clk 0:02:57]} 11. f4 {[%clk 0:02:51]}  Nc5 {[%clk 0:02:57]} 12. Bc2 {[%clk 0:02:51]}  Rb8 {[%clk 0:02:55]} 13. Qe2 {[%clk 0:02:48]}  Qa5 {[%clk 0:02:52]} 14. Rf3 {[%clk 0:02:45]}  Ba6 {[%clk 0:02:44]} 15. Kh1 {[%clk 0:02:40]}  Qb4 {[%clk 0:02:41]} 16. Bb3 {[%clk 0:02:35]}  Qa5 {[%clk 0:02:33]} 17. Bc2 {[%clk 0:02:35]}  Rb4 {[%clk 0:02:26]} 18. f5 {[%clk 0:02:14]}  Rxc4 {[%clk 0:02:19]} 19. Qf2 {[%clk 0:02:00]}  Bxc3 {[%clk 0:01:50]} 20. bxc3 {[%clk 0:01:49]}  Nxe4 {[%clk 0:01:44]} 21. Qxa7 {[%clk 0:01:37]}  Nxc3 {[%clk 0:00:33]} 22. Bb3 {[%clk 0:01:35]}  Nb5 {[%clk 0:00:15]} 23. Qxe7 {[%clk 0:01:28]}  Nd4 {[%clk 0:00:07]} 24. Bh6 {[%clk 0:01:26]}  Rb8 {[%clk 0:00:00]} 25. fxg6 {[%clk 0:01:25]} 1-0


[Site "https://www.chess.com"]

[Event "Titled Tuesday Blitz July 25 Late 2023"]
[White "Campos, Maria Jose"]
[Black "Sivakumar, Shaashwath"]
[WhiteFideId "146803"]
[BlackFideId "30912156"]
[WhiteElo "2373"]
[BlackElo "2589"]
[Result "0-1"]
[Round "2"]
[TimeControl "180+2"]
[Date "2023.07.25"]
[WhiteClock "0:01:04"]
[BlackClock "0:00:11"]
[Board "127"]

1. c4 {[%clk 0:03:00]}  c6 {[%clk 0:03:00]} 2. g3 {[%clk 0:03:00]}  d5 {[%clk 0:03:00]} 3. Nf3 {[%clk 0:03:00]}  Nf6 {[%clk 0:03:01]} 4. Bg2 {[%clk 0:03:00]}  Bg4 {[%clk 0:03:01]} 5. Ne5 {[%clk 0:02:57]}  Bf5 {[%clk 0:03:00]} 6. cxd5 {[%clk 0:02:57]}  cxd5 {[%clk 0:03:00]} 7. O-O {[%clk 0:02:57]}  Nc6 {[%clk 0:03:00]} 8. Nf3 {[%clk 0:02:56]}  e5 {[%clk 0:02:58]} 9. d3 {[%clk 0:02:57]}  Be7 {[%clk 0:02:58]} 10. Nc3 {[%clk 0:02:57]}  O-O {[%clk 0:02:57]} 11. Bg5 {[%clk 0:02:57]}  d4 {[%clk 0:02:56]} 12. Bxf6 {[%clk 0:02:56]}  Bxf6 {[%clk 0:02:57]} 13. Na4 {[%clk 0:02:54]}  Be7 {[%clk 0:02:55]} 14. Rc1 {[%clk 0:02:54]}  Be6 {[%clk 0:02:55]} 15. a3 {[%clk 0:02:53]}  Rc8 {[%clk 0:02:53]} 16. b4 {[%clk 0:02:52]}  b6 {[%clk 0:02:44]} 17. Nd2 {[%clk 0:02:52]}  Qd7 {[%clk 0:02:43]} 18. Rc2 {[%clk 0:02:43]}  Rc7 {[%clk 0:02:31]} 19. Qa1 {[%clk 0:02:40]}  Rfc8 {[%clk 0:02:28]} 20. Rfc1 {[%clk 0:02:40]}  Bf8 {[%clk 0:02:12]} 21. Nb2 {[%clk 0:02:38]}  Ne7 {[%clk 0:02:10]} 22. Qb1 {[%clk 0:02:36]}  Nd5 {[%clk 0:02:09]} 23. Rxc7 {[%clk 0:02:34]}  Rxc7 {[%clk 0:02:08]} 24. Rxc7 {[%clk 0:02:31]}  Qxc7 {[%clk 0:02:08]} 25. Nbc4 {[%clk 0:02:31]}  Nc3 {[%clk 0:02:04]} 26. Qe1 {[%clk 0:02:31]}  a5 {[%clk 0:01:59]} 27. bxa5 {[%clk 0:02:26]}  b5 {[%clk 0:01:58]} 28. Nb6 {[%clk 0:02:20]}  Bxa3 {[%clk 0:01:57]} 29. Ne4 {[%clk 0:02:16]}  Bb4 {[%clk 0:01:48]} 30. Qa1 {[%clk 0:02:15]}  Nxe2+ {[%clk 0:01:48]} 31. Kf1 {[%clk 0:02:15]}  Nc3 {[%clk 0:01:27]} 32. Ng5 {[%clk 0:02:08]}  Bf5 {[%clk 0:01:22]} 33. Ne4 {[%clk 0:02:02]}  Nxe4 {[%clk 0:01:12]} 34. dxe4 {[%clk 0:01:59]}  Bg4 {[%clk 0:01:04]} 35. Qb2 {[%clk 0:01:57]}  Bxa5 {[%clk 0:01:02]} 36. Nd5 {[%clk 0:01:55]}  Qc4+ {[%clk 0:01:00]} 37. Kg1 {[%clk 0:01:56]}  Bc3 {[%clk 0:00:59]} 38. Qa3 {[%clk 0:01:54]}  h6 {[%clk 0:00:53]} 39. Qa8+ {[%clk 0:01:51]}  Kh7 {[%clk 0:00:52]} 40. Ne7 {[%clk 0:01:51]}  f6 {[%clk 0:00:50]} 41. Bf1 {[%clk 0:01:50]}  Qf7 {[%clk 0:00:48]} 42. Nd5 {[%clk 0:01:42]}  b4 {[%clk 0:00:46]} 43. Qb8 {[%clk 0:01:42]}  Bf3 {[%clk 0:00:39]} 44. Bd3 {[%clk 0:01:41]}  Qh5 {[%clk 0:00:29]} 45. Qb7 {[%clk 0:01:39]}  Qg5 {[%clk 0:00:21]} 46. Qf7 {[%clk 0:01:32]}  Bh5 {[%clk 0:00:18]} 47. Nxf6+ {[%clk 0:01:26]}  Qxf6 {[%clk 0:00:19]} 48. Qxh5 {[%clk 0:01:26]}  Qe6 {[%clk 0:00:19]} 49. Be2 {[%clk 0:01:21]}  b3 {[%clk 0:00:18]} 50. Bg4 {[%clk 0:01:22]}  Qf6 {[%clk 0:00:17]} 51. Bf5+ {[%clk 0:01:22]}  g6 {[%clk 0:00:17]} 52. Qd1 {[%clk 0:01:18]}  gxf5 {[%clk 0:00:16]} 53. Qxb3 {[%clk 0:01:18]}  fxe4 {[%clk 0:00:15]} 54. Qb7+ {[%clk 0:01:19]}  Kg6 {[%clk 0:00:14]} 55. Qxe4+ {[%clk 0:01:19]}  Qf5 {[%clk 0:00:14]} 56. Qc6+ {[%clk 0:01:19]}  Kf7 {[%clk 0:00:14]} 57. Qxh6 {[%clk 0:01:19]}  d3 {[%clk 0:00:14]} 58. Qc6 {[%clk 0:01:16]}  Bd4 {[%clk 0:00:14]} 59. Qc4+ {[%clk 0:01:15]}  Kg6 {[%clk 0:00:13]} 60. Qa2 {[%clk 0:01:14]}  Qxf2+ {[%clk 0:00:11]} 61. Qxf2 {[%clk 0:01:12]}  d2 {[%clk 0:00:11]} 62. Qxd4 {[%clk 0:01:04]}  exd4 {[%clk 0:00:11]} 0-1


[Site "https://www.chess.com"]